bitfinex/quotes_ETHUSD_20250214
["timestamp","ask_amount","ask_price","bid_price","bid_amount"]
[1739517670354,5.32,2704.9,2704.8,3.77481995]
[1739517670526,5.32,2704.9,2704.8,6.94301977]
[1739517670729,0.4968,2705.1,2704.8,7.75121977]
[1739517671924,4.19354,2705.1,2704.8,4.05408977]
[1739517672115,4.982542,2705.1,2704.8,3.24588977]
[1739517672321,0.4968,2705.1,2704.8,6.94299977]
[1739517672741,0.4968,2705.1,2704.8,3.24588977]
[1739517673063,0.4968,2705.1,2704.8,6.94301977]
[1739517675834,0.4968,2705.1,2704.9,4.50275]
[1739517676343,0.4968,2705.1,2705.0,0.07751414]
[1739517676660,0.4968,2705.1,2705.0,3.77436414]
[1739517678895,0.4968,2705.1,2705.0,4.91889554]
[1739517679499,0.4968,2705.1,2705.0,5.68829554]
[1739517682684,0.9936,2705.1,2705.0,5.68829554]
[1739517688443,0.9936,2705.1,2705.0,6.43266373]
[1739517689732,0.9936,2705.1,2705.0,7.96910311]
[1739517691850,0.9936,2705.1,2705.0,9.60125609]
[1739517706026,5.32,2705.9,2705.2,0.8251]
[1739517706230,0.7517,2706.1,2706.0,3.69549]
[1739517706619,0.7517,2706.1,2706.0,3.76663092]
[1739517714882,0.7852,2706.3,2706.1,3.69535]
[1739517715279,0.7852,2706.3,2706.2,0.07099842]
[1739517716673,0.7852,2706.3,2706.0,3.69541]
[1739517716866,0.7852,2706.3,2706.2,0.07099842]
[1739517717068,0.7852,2706.3,2706.1,0.07106967]
[1739517717385,0.7852,2706.3,2706.2,0.07099842]
[1739517719186,0.7852,2706.3,2706.2,3.76620842]
[1739517721694,0.7852,2706.3,2706.2,0.07099842]
[1739517722194,0.7852,2706.3,2706.2,3.76620842]
[1739517724266,0.1501232,2706.4,2706.2,3.76620842]
[1739517724889,0.1501232,2706.4,2706.3,3.69508]
[1739517725258,0.1501232,2706.4,2706.3,3.76361557]
[1739517725950,0.1501232,2706.4,2706.3,5.77867367]
[1739517726164,0.1501232,2706.4,2706.3,5.81562113]
[1739517726396,0.1501232,2706.4,2706.3,5.77867367]
[1739517728909,0.1501232,2706.4,2706.3,6.59651762]
[1739517729518,0.1501232,2706.4,2706.3,8.13222773]
[1739517729811,0.1501232,2706.4,2706.3,6.55957367]
[1739517729965,0.1501232,2706.4,2706.3,8.09528378]
[1739517730165,0.1501232,2706.4,2706.3,6.55957367]
[1739517730766,0.1501232,2706.4,2706.3,7.28785419]
[1739517735603,0.1501232,2706.4,2706.3,7.32479719]
[1739517736831,0.1501232,2706.4,2706.3,7.28785419]
[1739517737935,0.1501232,2706.4,2706.3,7.32479694]
[1739517738483,0.1501232,2706.4,2706.3,7.87479694]
[1739517738730,0.1501232,2706.4,2706.3,7.83785419]
[1739517748980,0.1501232,2706.4,2706.3,6.50695419]
[1739517749133,0.9831232,2706.4,2706.3,3.76361557]
[1739517749455,0.9831232,2706.4,2706.3,0.06853557]
[1739517749813,0.9831232,2706.4,2706.3,3.69508]
[1739517750223,0.9831232,2706.4,2706.3,3.75610216]
[1739517750726,0.9831232,2706.4,2706.3,6.19420958]
[1739517750727,0.1501232,2706.4,2706.3,6.19420958]
[1739517751029,0.1501232,2706.4,2706.3,6.23115636]
[1739517751620,0.1501232,2706.4,2706.3,6.19420958]
[1739517752442,0.1501232,2706.4,2706.3,6.23115639]
[1739517752643,0.1501232,2706.4,2706.3,6.19420958]
[1739517753854,0.1501232,2706.4,2706.3,4.65849947]
[1739517754243,0.1501232,2706.4,2706.3,5.15449947]
[1739517756560,0.1501232,2706.4,2706.3,5.97559947]
[1739517766997,0.1501232,2706.4,2706.3,5.15449947]
[1739517778805,0.1501232,2706.4,2706.3,5.15449947]
[1739517789513,0.1501232,2706.4,2706.3,5.74144158]
[1739517790107,0.1501232,2706.4,2706.3,5.70449947]
[1739517810568,0.1501232,2706.4,2706.3,5.74144146]
[1739517810871,3.2e-06,2706.4,2706.3,9.56144146]
[1739517811041,3.2e-06,2706.4,2706.3,11.05967015]
[1739517811246,3.2e-06,2706.4,2706.3,9.52449947]
[1739517818339,3.2e-06,2706.4,2706.3,9.53949947]
[1739517820348,3.2e-06,2706.4,2706.3,14.78949947]
[1739517824545,3.2e-06,2706.4,2706.3,13.95449947]
[1739517828185,3.2e-06,2706.4,2706.3,14.78709947]
[1739517831210,3.2e-06,2706.4,2706.3,16.33727015]
[1739517831508,3.2e-06,2706.4,2706.3,14.80209947]
[1739517831874,3.2e-06,2706.4,2706.3,13.95449947]
[1739517835436,3.2e-06,2706.4,2706.3,13.96949947]
[1739517835580,3.2e-06,2706.4,2706.3,14.72659947]
[1739517838724,3.2e-06,2706.4,2706.3,16.26177015]
[1739517839078,3.2e-06,2706.4,2706.3,14.72659947]
[1739517850870,3.2e-06,2706.4,2706.3,10.40449947]
[1739517851068,0.7724032,2706.4,2706.3,9.50210216]
[1739517851865,3.2e-06,2706.4,2706.3,9.50210216]
[1739517855466,0.7771032,2706.4,2706.3,9.50210216]
[1739517856034,0.7771032,2706.4,2706.3,4.25210216]
[1739517857635,0.7771032,2706.4,2706.3,0.55702216]
[1739517858067,4.00833059,2706.4,2706.3,0.496]
[1739517858431,4.00833059,2706.4,2706.3,0.5558362]
[1739517859747,4.00833059,2706.4,2706.3,0.496]
[1739517860841,4.00833059,2706.4,2706.3,0.5558362]
[1739517861875,1.00833059,2706.4,2706.3,0.5558362]
[1739517862179,1.00833059,2706.4,2706.3,4.2509162]
[1739517862390,1.00833059,2706.4,2706.3,0.5558362]
[1739517863887,0.7771032,2706.4,2706.3,0.5558362]
[1739517867381,0.7771032,2706.4,2706.3,4.2509162]
[1739517867693,0.7771032,2706.4,2706.3,0.5558362]
[1739517869056,0.7771032,2706.4,2706.3,4.2509162]
[1739517872568,0.7771032,2706.4,2706.3,0.5558362]
[1739517872770,0.7771032,2706.4,2706.3,4.19108]
[1739517873067,0.7771032,2706.4,2706.3,4.25185364]
[1739517875304,0.7771032,2706.4,2706.3,0.55677364]
[1739517875493,1.68681352,2706.4,2706.3,0.55677364]
[1739517879304,8.38175352,2706.4,2706.3,0.55677364]
[1739517879647,4.68681352,2706.4,2706.3,0.55677364]
[1739517882941,4.68681352,2706.4,2706.3,4.25185364]
[1739517883125,3.7771032,2706.4,2706.3,4.25185364]
[1739517883432,3.2e-06,2706.4,2706.3,4.25185364]
[1739517885509,3.2e-06,2706.4,2706.3,5.04295364]
[1739517888441,3.2e-06,2706.4,2706.3,5.79235065]
[1739517890145,3.2e-06,2706.4,2706.3,5.8292937]
[1739517890450,3.2e-06,2706.4,2706.3,7.45317309]
[1739517890614,3.2e-06,2706.4,2706.3,7.41623004]
[1739517910187,3.2e-06,2706.4,2706.3,7.45316986]
[1739517911549,3.2e-06,2706.4,2706.3,8.98834054]
[1739517911748,3.2e-06,2706.4,2706.3,8.95140072]
[1739517912187,3.2e-06,2706.4,2706.3,9.51640072]
[1739517912548,3.2e-06,2706.4,2706.3,14.76640072]
[1739517912957,3.2e-06,2706.4,2706.3,13.23123004]
[1739517913165,3.2e-06,2706.4,2706.3,14.76640072]
[1739517918952,3.2e-06,2706.4,2706.3,13.23123004]
[1739517923233,3.2e-06,2706.4,2706.3,14.76640072]
[1739517923812,3.2e-06,2706.4,2706.3,13.23123004]
[1739517924012,3.2e-06,2706.4,2706.3,14.76640072]
[1739517924323,3.2e-06,2706.4,2706.3,13.23123004]
[1739517932842,3.2e-06,2706.4,2706.3,12.44013004]
[1739517936398,3.2e-06,2706.4,2706.3,13.23363004]
[1739517938507,3.2e-06,2706.4,2706.3,12.44013004]
[1739517943200,3.2e-06,2706.4,2706.3,10.25125065]
[1739517944184,0.8012032,2706.4,2706.3,10.25125065]
[1739517945212,3.2e-06,2706.4,2706.3,10.25125065]
[1739517952887,3.2e-06,2706.4,2706.3,12.35142133]
[1739517955143,3.2e-06,2706.4,2706.3,10.81625065]
[1739517955342,3.2e-06,2706.4,2706.3,13.37445178]
[1739517959346,0.7738032,2706.4,2706.3,10.25125065]
[1739517960087,0.7738032,2706.4,2706.3,5.00125065]
[1739517960392,3.2e-06,2706.4,2706.3,5.00125065]
[1739517965375,3.2e-06,2706.4,2706.3,7.1233645]
[1739517965574,3.2e-06,2706.4,2706.3,7.89172133]
[1739517965857,3.2e-06,2706.4,2706.3,8.19375885]
[1739517966014,3.2e-06,2706.4,2706.3,13.44375885]
[1739517966650,3.2e-06,2706.4,2706.3,14.97892953]
[1739517966849,3.2e-06,2706.4,2706.3,13.44375885]
[1739517968910,3.2e-06,2706.4,2706.3,14.97892953]
[1739517971862,0.8165,2708.0,2707.0,3.69412]
[1739517972058,0.8165,2708.0,2707.9,3.69289]
[1739517972556,0.8165,2708.0,2707.9,3.74943621]
[1739517973141,0.8165,2708.0,2707.9,0.05654621]
[1739517973866,0.8165,2708.0,2707.9,3.74943621]
[1739517974321,0.8165,2708.0,2707.9,0.05654621]
[1739517974517,1.19815,2708.0,2707.9,3.74943621]
[1739517974721,1.19815,2708.0,2707.9,3.69289]
[1739517974955,1.19815,2708.0,2707.9,3.74943621]
[1739517975175,1.19815,2708.0,2707.9,0.05654621]
[1739517975373,3.38165,2708.0,2707.6,3.69327]
[1739517975528,0.8265,2707.7,2707.2,3.69376]
[1739517975735,0.8265,2707.7,2707.3,3.69365]
[1739517976137,0.7867,2707.5,2707.1,3.69398]
[1739517976336,0.7867,2707.4,2707.1,3.69398]
[1739517976574,0.8239,2707.2,2707.1,3.69398]
[1739517976938,0.8239,2707.2,2707.1,3.74879057]
[1739517977231,0.8239,2707.2,2707.1,0.05481057]
[1739517977480,0.7505,2707.1,2706.7,3.69452]
[1739517977777,0.7505,2706.9,2706.7,3.69452]
[1739517978373,0.7505,2706.9,2706.6,3.69456]
[1739517978676,0.7505,2706.9,2706.7,3.69453]
[1739517979735,0.7505,2706.9,2706.5,3.69468]
[1739517979971,0.7505,2706.9,2706.7,7.38894]
[1739517980179,0.7505,2706.9,2706.7,7.3889]
[1739517980336,0.7505,2706.9,2706.8,3.69439]
[1739517980536,0.4494935,2706.9,2706.7,3.69445]
[1739517980770,0.7901,2706.8,2706.7,3.69445]
[1739517982992,0.7901,2706.8,2706.0,3.16658864]
[1739517983190,0.7901,2706.8,2705.5,2.43550287]
[1739517983191,3.7581,2706.2,2705.5,2.43550287]
[1739517983392,0.7863,2705.9,2705.5,3.69614]
[1739517983691,3.69447,2706.8,2706.2,3.69513]
[1739517983849,0.7863,2706.5,2706.2,3.69513]
[1739517984054,0.7863,2706.5,2706.0,3.69546]
[1739517984055,0.474597,2706.4,2706.0,3.69546]
[1739517984288,0.474597,2706.4,2706.0,3.69539]
[1739517984951,0.751,2706.3,2706.0,3.69539]
[1739517985151,0.751,2706.3,2705.9,3.6956]
[1739517985351,0.751,2706.3,2706.0,3.69545]
[1739517985352,1.5430557,2706.3,2706.0,3.69545]
[1739517985994,1.5430557,2706.3,2706.0,3.69539]
[1739517987364,1.5430557,2706.3,2705.8,3.69567]
[1739517987747,1.5430557,2706.3,2705.8,3.69565]
[1739517988598,4.46265,2706.1,2705.5,3.69604]
[1739517988755,4.51861,2705.9,2705.2,3.69658]
[1739517989092,4.51861,2705.9,2705.2,3.69651]
[1739517989292,3.696,2705.7,2705.2,3.69651]
[1739517989494,0.8229,2705.6,2705.0,3.69676]
[1739517989694,5.32,2706.1,2704.5,0.1840864]
[1739517989695,0.8123,2705.5,2704.8,3.69703]
[1739517989996,3.69661,2705.2,2704.7,3.69723]
[1739517990258,8.20534,2705.3,2704.8,3.69703]
[1739517990402,0.820534,2705.2,2704.8,3.69703]
[1739517990939,0.820534,2705.2,2704.9,3.69692]
[1739517991095,0.820534,2705.2,2705.0,3.69683]
[1739517991295,0.8123,2705.3,2705.0,3.69683]
[1739517991600,0.8123,2705.3,2705.1,3.69671]
[1739517991810,0.8123,2705.3,2705.1,3.74285715]
[1739517993333,4.52814,2705.9,2705.3,3.69635]
[1739517993631,2.42325271,2705.9,2705.4,3.6963]
[1739517993837,5.42325271,2705.9,2705.4,3.74340915]
[1739517994134,3.0,2705.7,2705.4,0.04710915]
[1739517994335,0.669583,2705.6,2705.4,0.04710915]
[1739517994638,0.669583,2705.6,2705.5,0.04703787]
[1739517994805,3.0,2705.8,2705.5,0.04703787]
[1739517995134,3.0,2705.8,2705.4,3.69624]
[1739517995494,3.0,2705.8,2705.5,0.04703787]
[1739517997699,6.69583,2705.8,2705.5,0.04703787]
[1739517998037,2.15725271,2705.9,2705.6,3.74290659]
[1739517998242,0.8325,2705.9,2705.8,3.69576]
[1739517998592,0.8325,2705.9,2705.8,3.74258404]
[1739517999337,0.7523,2706.2,2705.9,3.69554]
[1739517999842,0.7523,2706.2,2706.0,0.04668152]
[1739518000303,0.7523,2706.2,2706.0,3.74209152]
[1739518000635,1.76523557,2706.2,2706.0,3.74209152]
[1739518001463,1.76523557,2706.2,2706.1,3.69535]
[1739518001799,1.76523557,2706.2,2706.1,3.74163051]
[1739518002133,1.76523557,2706.2,2706.1,0.04628051]
[1739518002523,1.76523557,2706.2,2705.9,3.69552]
[1739518002738,1.76523557,2706.2,2706.1,0.04628051]
[1739518003243,1.76523557,2706.2,2706.0,3.69543]
[1739518003450,1.76523557,2706.2,2706.1,0.04628051]
[1739518003609,0.7523,2706.2,2706.1,3.74163051]
[1739518003810,0.7523,2706.2,2706.1,3.69535]
[1739518004151,0.7523,2706.2,2706.1,3.74163051]
[1739518004951,0.7523,2706.2,2706.1,0.04628051]
[1739518005104,2.029031,2706.2,2706.1,3.74163051]
[1739518005320,6.1216,2706.4,2706.2,3.69513]
[1739518005718,9.1216,2706.4,2706.3,0.04613802]
[1739518006119,9.1216,2706.4,2706.2,3.69513]
[1739518006324,9.1216,2706.4,2706.3,0.04613802]
[1739518006520,10.403227,2706.4,2706.3,0.04613802]
[1739518007047,10.403227,2706.4,2706.1,3.69527]
[1739518007249,10.403227,2706.4,2706.3,0.04572584]
[1739518007450,10.403227,2706.4,2706.2,0.04579708]
[1739518007665,5.083227,2706.4,2706.3,0.04572584]
[1739518008038,5.083227,2706.4,2706.2,3.69519]
[1739518008237,5.083227,2706.4,2706.3,0.04572584]
[1739518008463,5.083227,2706.4,2706.2,3.69519]
[1739518008639,5.083227,2706.4,2706.3,0.04572584]
[1739518009083,5.083227,2706.4,2706.2,3.69519]
[1739518009238,5.083227,2706.4,2706.3,0.04572584]
[1739518009667,5.083227,2706.4,2706.2,3.69519]
[1739518009960,5.083227,2706.4,2706.3,0.04572584]
[1739518010160,5.083227,2706.4,2706.3,3.74080584]
[1739518010371,5.083227,2706.4,2706.3,3.69508]
[1739518010568,0.8128,2706.7,2706.4,3.69492]
[1739518010765,0.8128,2706.7,2706.6,3.69467]
[1739518011073,0.8128,2706.7,2706.6,0.04551214]
[1739518012328,0.8128,2706.7,2706.6,3.74018214]
[1739518012674,0.7756,2706.9,2706.8,3.69439]
[1739518012838,0.7517,2707.1,2706.6,0.81681214]
[1739518013172,0.7517,2707.1,2707.0,3.69412]
[1739518013570,0.7517,2707.1,2707.0,3.73917148]
[1739518014676,0.8232,2707.5,2707.0,3.73917148]
[1739518014977,1.724544,2707.5,2707.3,3.69363]
[1739518015268,1.724544,2707.5,2707.4,0.04459643]
[1739518018427,1.724544,2707.5,2707.4,3.73817643]
[1739518018633,1.724544,2707.5,2707.4,0.04459643]
[1739518018968,0.901344,2707.5,2707.4,3.73817643]
[1739518019476,0.901344,2707.5,2707.4,0.04459643]
[1739518019834,0.901344,2707.5,2707.3,3.6937]
[1739518020032,0.3901344,2707.4,2707.3,3.6937]
[1739518021359,3.0,2707.6,2707.5,3.69344]
[1739518021562,0.7914,2707.7,2707.6,3.6933]
[1739518021965,0.7914,2707.7,2707.6,3.73703464]
[1739518024872,0.7914,2707.7,2707.6,0.04373464]
[1739518025174,0.7914,2707.7,2707.6,3.73703464]
[1739518026887,3.8282,2707.9,2707.7,3.69317]
[1739518027183,4.76952,2707.9,2707.7,3.69317]
[1739518027387,4.76952,2707.9,2707.8,0.04359231]
[1739518028810,4.76952,2707.9,2707.6,3.69321]
[1739518028811,4.76952,2707.9,2707.6,3.69318]
[1739518029170,4.76952,2707.9,2707.7,3.73654937]
[1739518030075,4.76952,2707.9,2707.8,3.69303]
[1739518030476,4.76952,2707.9,2707.8,3.7364082]
[1739518031318,4.76952,2707.9,2707.8,0.0433782]
[1739518031613,4.76952,2707.9,2707.6,3.69318]
[1739518031795,4.76952,2707.9,2707.6,7.38642]
[1739518032109,4.76952,2707.9,2707.7,3.73652937]
[1739518033216,4.76952,2707.9,2707.7,0.04344937]
[1739518036395,4.76952,2707.9,2707.7,0.04344937]
[1739518036888,8.46246,2707.9,2707.7,0.04344937]
[1739518037088,1.747527,2707.8,2707.5,3.69337]
[1739518038931,1.747527,2707.8,2707.6,3.69322]
[1739518041941,1.747527,2707.8,2707.6,3.69328]
[1739518044644,1.747527,2707.8,2707.5,3.69337]
[1739518044850,1.747527,2707.8,2707.7,3.69317]
[1739518045250,3.7767,2707.6,2707.1,3.69396]
[1739518045465,0.746988,2707.5,2707.2,3.69376]
[1739518045609,3.8135,2707.8,2707.0,4.47248]
[1739518045808,0.8135,2707.8,2707.4,7.387]
[1739518046420,3.8135,2707.8,2707.4,3.69349]
[1739518046646,3.69327,2707.7,2707.2,3.69374]
[1739518046958,3.450677,2707.6,2707.2,3.69374]
[1739518047252,3.8099,2707.4,2707.0,4.47242]
[1739518047438,0.8099,2707.4,2707.1,3.69389]
[1739518049433,0.8099,2707.4,2707.0,3.6941]
[1739518050074,0.8099,2707.4,2706.9,3.69423]
[1739518050286,3.0,2707.2,2706.8,3.69431]
[1739518050566,3.0,2707.2,2706.8,3.69432]
[1739518051248,3.0,2707.2,2706.9,3.69426]
[1739518051410,3.0,2707.2,2706.8,3.69437]
[1739518051612,3.0,2707.2,2706.7,3.69446]
[1739518051840,3.85706739,2707.2,2706.9,3.69424]
[1739518052153,3.85706739,2707.2,2707.0,0.04404647]
[1739518052512,4.44808,2707.1,2707.0,0.04404647]
[1739518052712,4.44808,2707.1,2706.6,3.69467]
[1739518052911,4.44808,2707.1,2707.0,0.04404647]
[1739518053117,3.0,2706.9,2706.5,3.69478]
[1739518053417,3.0,2707.0,2706.7,3.69447]
[1739518053839,3.0,2707.0,2706.8,3.73862379]
[1739518054039,3.0,2707.0,2706.8,0.04424379]
[1739518054285,1.27783041,2707.0,2706.8,3.69439]
[1739518054495,0.7541,2707.1,2706.7,3.69446]
[1739518054695,0.85706739,2707.2,2706.9,3.73852142]
[1739518054893,0.85706739,2707.2,2706.9,0.04427142]
[1739518055093,3.0,2707.1,2706.8,0.04434263]
[1739518055301,3.0,2707.1,2707.0,0.04420021]
[1739518055498,4.20385674,2707.1,2706.8,3.69439]
[1739518055795,1.20385674,2707.1,2707.0,0.04420021]
[1739518055986,1.20385674,2707.1,2706.9,3.73849142]
[1739518056185,3.7939,2707.3,2707.0,0.04420021]
[1739518056363,7.48763,2707.3,2707.0,0.04420021]
[1739518056894,3.7939,2707.3,2707.0,0.04420021]
[1739518057810,4.48745,2707.5,2707.0,3.73819021]
[1739518058179,4.48745,2707.5,2707.0,7.43219021]
[1739518058514,0.448745,2707.4,2707.0,7.43222021]
[1739518059163,0.448745,2707.4,2707.1,3.69398]
[1739518059632,0.448745,2707.4,2707.2,0.04420055]
[1739518060811,0.7939,2707.5,2707.2,3.73801055]
[1739518061330,3.7939,2707.5,2707.2,0.04420055]
[1739518063515,7.66371864,2707.8,2707.3,3.6936]
[1739518063687,3.0,2707.7,2707.3,0.04412936]
[1739518064022,3.0,2707.7,2707.4,3.69358]
[1739518064225,3.0,2707.7,2707.4,3.73763817]
[1739518065621,0.7983,2708.0,2707.6,3.6933]
[1739518065825,0.7983,2708.0,2707.5,4.50578]
[1739518065826,6.15810786,2708.0,2707.5,4.50578]
[1739518066028,3.0,2707.9,2707.7,0.0436964]
[1739518066183,3.0,2707.9,2707.6,3.73704659]
[1739518066385,3.0,2707.9,2707.8,0.04361426]
[1739518066699,2.46530786,2708.0,2707.8,0.04360877]
[1739518066899,1.46445365,2707.9,2707.4,3.69348]
[1739518067123,3.69303,2707.8,2707.3,3.6937]
[1739518067318,4.46298,2707.7,2707.2,8.15672]
[1739518067527,4.46298,2707.7,2707.3,3.69365]
[1739518068023,0.7698,2707.7,2707.3,7.38729]
[1739518068325,0.7698,2707.7,2707.3,3.69364]
[1739518068825,0.7698,2707.7,2707.3,7.38728]
[1739518069552,0.7698,2707.7,2707.3,3.69364]
[1739518069847,0.7698,2707.7,2707.3,3.69365]
[1739518070356,5.05570337,2707.7,2707.2,3.69373]
[1739518071080,5.05570337,2707.7,2707.3,3.69365]
[1739518071414,1.36252337,2707.7,2707.3,3.69365]
[1739518071713,3.0,2708.0,2707.5,3.69337]
[1739518071909,0.8136,2707.8,2706.9,0.8277]
[1739518072109,3.69334,2707.6,2707.2,3.69384]
[1739518073673,7.50679,2707.7,2707.2,7.38761]
[1739518074376,8.94343286,2707.7,2707.2,3.69377]
[1739518075273,8.94343286,2707.7,2707.0,3.69404]
[1739518075478,3.69339,2707.6,2707.1,3.69395]
[1739518076455,3.69339,2707.6,2707.2,3.69383]
[1739518077124,3.69349,2707.5,2707.1,3.69395]
[1739518077771,3.69349,2707.5,2707.1,7.38787]
[1739518078141,3.69349,2707.5,2707.1,3.69392]
[1739518078357,5.25024286,2707.7,2707.1,3.69392]
[1739518078674,3.69332,2707.6,2707.2,3.69384]
[1739518079372,7.50686,2707.7,2707.2,3.69384]
[1739518079526,3.69337,2707.6,2707.2,3.69384]
[1739518080079,3.69344,2707.5,2707.1,3.69394]
[1739518080578,3.69381,2707.3,2706.8,3.69433]
[1739518080782,3.69385,2707.2,2706.7,3.69442]
[1739518080921,3.69385,2707.2,2706.7,3.69451]
[1739518081121,3.69403,2707.1,2706.7,3.69451]
[1739518081353,3.69391,2707.2,2706.7,3.69447]
[1739518081817,0.8045,2707.3,2706.8,0.04422732]
[1739518082242,3.694,2707.1,2706.7,3.69447]
[1739518082474,3.694,2707.1,2706.9,0.04415611]
[1739518082676,3.0,2707.1,2706.8,3.73860732]
[1739518082823,3.0,2707.1,2707.0,0.0440849]
[1739518083029,4.119215,2707.1,2706.9,0.04415611]
[1739518083224,6.69399,2707.1,2707.0,0.0440849]
[1739518083430,7.51999,2707.1,2707.0,0.0440849]
[1739518083678,7.51999,2707.1,2706.6,3.69463]
[1739518083845,7.51999,2707.1,2707.0,0.0442551]
[1739518084029,8.95803386,2707.1,2706.6,3.69463]
[1739518084222,8.95803386,2707.1,2707.0,0.0442551]
[1739518084467,8.95803386,2707.1,2707.0,0.04427707]
[1739518084824,8.95803386,2707.1,2706.6,3.69463]
[1739518085028,8.95803386,2707.1,2707.0,0.04427707]
[1739518085188,5.26404386,2707.1,2706.7,3.69447]
[1739518085374,3.0,2707.1,2707.0,0.04427707]
[1739518085572,3.0,2707.1,2706.8,3.69439]
[1739518085775,3.0,2707.1,2707.0,0.04427707]
[1739518086011,3.0,2707.1,2706.8,3.69439]
[1739518086318,3.0,2707.1,2707.0,0.04427707]
[1739518086618,3.0,2707.1,2706.8,3.69439]
[1739518086619,3.0,2707.1,2706.9,0.04434828]
[1739518086787,3.0,2707.1,2707.0,0.04427707]
[1739518086973,3.0,2707.1,2706.8,3.69439]
[1739518087177,3.0,2707.1,2707.0,0.04427707]
[1739518088646,0.7945,2707.3,2707.0,0.04427707]
[1739518088776,3.0,2707.1,2706.7,4.45896]
[1739518089629,3.0,2707.1,2706.7,8.15343]
[1739518090429,3.0,2707.1,2706.7,4.45896]
[1739518091015,3.0,2707.1,2706.7,4.45895]
[1739518092025,3.0,2707.1,2706.7,8.15339]
[1739518092323,3.0,2707.1,2706.7,4.45894]
[1739518093810,3.0,2707.1,2706.8,3.69439]
[1739518094112,3.0,2707.1,2706.7,4.45894]
[1739518095111,6.69411,2707.1,2706.7,0.7645]
[1739518095413,3.69413,2707.0,2706.6,3.69464]
[1739518095617,3.0,2707.1,2706.7,3.69446]
[1739518095822,6.69401,2707.1,2706.7,3.69446]
[1739518096834,6.69401,2707.1,2706.8,0.04451632]
[1739518097224,6.69401,2707.1,2706.7,3.69446]
[1739518097589,6.69401,2707.1,2706.8,0.04451632]
[1739518097789,6.69401,2707.1,2706.7,3.69446]
[1739518098092,6.69401,2707.1,2706.9,0.04444511]
[1739518098303,6.69401,2707.1,2706.8,0.04451632]
[1739518098588,6.69401,2707.1,2706.7,3.69446]
[1739518098790,6.69401,2707.1,2706.9,0.04444511]
[1739518098989,3.0,2707.1,2706.8,3.69438]
[1739518099825,3.0,2707.1,2707.0,0.0443739]
[1739518100027,3.0,2707.1,2706.8,3.69438]
[1739518100028,3.0,2707.1,2706.9,0.04444511]
[1739518100232,3.0,2707.1,2707.0,0.0443739]
[1739518100527,3.0,2707.1,2706.8,3.69438]
[1739518100728,3.0,2707.1,2707.0,0.0443739]
[1739518101029,3.0,2707.1,2706.8,3.69438]
[1739518101191,3.0,2707.1,2707.0,0.0443739]
[1739518101830,3.0,2707.1,2706.8,3.69438]
[1739518102024,3.0,2707.1,2707.0,0.0443739]
[1739518102223,3.0,2707.1,2706.9,0.04444511]
[1739518102427,3.0,2707.1,2707.0,0.0443739]
[1739518102633,3.0,2707.2,2707.0,0.0443739]
[1739518102932,3.0,2707.2,2706.8,3.69432]
[1739518103148,3.0,2707.2,2707.1,0.0443027]
[1739518103358,3.0,2707.2,2706.9,3.69425]
[1739518103652,3.0,2707.2,2707.1,0.0443027]
[1739518103853,3.0,2707.2,2707.0,0.0443739]
[1739518104018,3.0,2707.2,2707.1,0.0443027]
[1739518104358,3.0,2707.2,2706.9,3.69425]
[1739518104512,3.0,2707.2,2707.1,0.0443027]
[1739518104712,3.0,2707.2,2706.9,3.69425]
[1739518104913,3.0,2707.2,2707.1,0.0443027]
[1739518105239,3.0,2707.2,2706.9,3.69425]
[1739518105455,3.0,2707.2,2707.1,0.0443027]
[1739518105653,4.53510019,2707.4,2707.1,3.69392]
[1739518105838,4.53510019,2707.4,2707.1,3.7382227]
[1739518106352,6.33485121,2707.4,2707.1,3.7382227]
[1739518106877,1.53510019,2707.2,2707.1,3.7382227]
[1739518108845,1.53510019,2707.2,2707.1,0.0443027]
[1739518114931,1.53510019,2707.2,2706.9,3.69418]
[1739518115131,1.53510019,2707.2,2707.1,0.04414348]
[1739518115333,4.53510019,2707.2,2706.8,4.49668]
[1739518115533,4.53510019,2707.2,2707.1,0.04414348]
[1739518115734,4.53510019,2707.2,2706.8,4.49668]
[1739518115946,4.53510019,2707.2,2707.1,0.04414348]
[1739518116160,9.60117231,2707.2,2706.8,4.49668]
[1739518116468,10.40387231,2707.2,2707.1,0.04414348]
[1739518116973,10.40387231,2707.2,2706.8,4.49672]
[1739518117269,9.03165019,2707.2,2707.1,0.04414348]
[1739518117460,9.03165019,2707.2,2706.8,4.49672]
[1739518117648,9.03165019,2707.2,2707.1,0.04414348]
[1739518117851,9.03165019,2707.2,2706.8,4.49672]
[1739518118374,3.69407,2707.1,2706.9,0.04428589]
[1739518118881,1.53510019,2707.0,2706.9,0.04428589]
[1739518119171,1.53510019,2707.0,2706.6,4.50925]
[1739518119375,1.53510019,2707.0,2706.9,0.04425843]
[1739518119547,1.53510019,2707.0,2706.6,4.50925]
[1739518119735,1.53510019,2707.0,2706.9,0.04425843]
[1739518119936,1.53510019,2707.0,2706.6,4.50925]
[1739518120137,1.53510019,2707.0,2706.9,0.04425843]
[1739518120337,1.53510019,2707.0,2706.6,4.50925]
[1739518120550,1.53510019,2707.0,2706.9,0.04425843]
[1739518120777,1.53510019,2707.0,2706.6,4.50925]
[1739518120979,1.53510019,2707.0,2706.9,0.0443298]
[1739518121175,1.53510019,2707.0,2706.6,4.50925]
[1739518121380,1.53510019,2707.0,2706.9,0.0443298]
[1739518121565,1.53510019,2707.0,2706.6,4.50925]
[1739518121871,1.53510019,2707.0,2706.9,0.0443298]
[1739518122076,1.53510019,2707.0,2706.6,4.50925]
[1739518122274,3.69422,2707.0,2706.9,0.0443298]
[1739518122475,4.96682802,2707.0,2706.6,3.69459]
[1739518122644,3.69422,2707.0,2706.9,0.04434079]
[1739518123180,3.69422,2707.0,2706.6,3.69459]
[1739518123477,1.53510019,2706.9,2706.6,3.69459]
[1739518125203,1.53510019,2706.9,2706.5,3.69475]
[1739518125717,1.53510019,2706.9,2706.6,3.69465]
[1739518126867,1.53510019,2706.9,2706.7,0.04453813]
[1739518127486,5.22937019,2706.9,2706.7,0.04453813]
[1739518127683,1.53510019,2706.9,2706.7,0.04453813]
[1739518127984,1.53510019,2706.9,2706.8,0.04446691]
[1739518128193,1.53510019,2706.9,2706.6,3.69463]
[1739518128348,1.53510019,2706.9,2706.8,0.04446691]